fUSD/lending_fUSD_20240919
["ID","MTS","AMOUNT","RATE_DAILY","PERIOD"]
[338554867,1726732248755,-500.0,0.00013437,2]
[338554868,1726732248765,-500.0,0.00013437,2]
[338554869,1726732248774,-500.0,0.00013437,2]
[338554870,1726732248783,-728.77,0.00013437,2]
[338554871,1726732248800,-539.85,0.00013437,2]
[338554872,1726732248809,-500.0,0.00013437,2]
[338554873,1726732248818,-500.0,0.00013437,2]
[338554874,1726732248828,-500.0,0.00013437,2]
[338554875,1726732248837,-783.65,0.00013437,2]
[338554876,1726732248847,-572.27,0.00013437,2]
[338554877,1726732248856,-500.0,0.00013437,2]
[338554878,1726732248867,-500.0,0.00013437,2]
[338554879,1726732248876,-500.0,0.00013437,2]
[338554880,1726732248885,-962.12,0.00013437,2]
[338554881,1726732248895,-270.37448229,0.00013437,2]
[338554882,1726732248904,-500.0,0.00013437,2]
[338554883,1726732248913,-500.0,0.00013437,2]
[338554884,1726732248922,-545.57,0.00013437,2]
[338554885,1726732248932,-500.0,0.00013437,2]
[338554886,1726732248941,-500.0,0.00013437,2]
[338554887,1726732248950,-910.48,0.00013437,2]
[338554888,1726732248960,-979.92,0.00013437,2]
[338554889,1726732248969,-1433.4,0.00013437,2]
[338554890,1726732248979,-500.0,0.00013437,2]
[338554891,1726732248989,-500.0,0.00013437,2]
[338554892,1726732248998,-638.34,0.00013437,2]
[338554893,1726732249008,-665.78,0.00013437,2]
[338554894,1726732249017,-500.0,0.00013437,2]
[338554895,1726732249028,-500.0,0.00013437,2]
[338554896,1726732249039,-500.0,0.00013437,2]
[338554897,1726732249048,-500.0,0.00013437,2]
[338554898,1726732249058,-503.9,0.00013437,2]
[338554899,1726732249067,-500.0,0.00013437,2]
[338554900,1726732249076,-522.83,0.00013437,2]
[338554901,1726732249086,-487.82575038,0.00013437,2]
[338554902,1726732249095,-500.0,0.00013437,2]
[338554903,1726732249105,-500.0,0.00013437,2]
[338554904,1726732249114,-500.0,0.00013437,2]
[338554905,1726732249123,-500.0,0.00013437,2]
[338554906,1726732249133,-500.0,0.00013437,2]
[338554907,1726732249142,-549.04,0.00013437,2]
[338554908,1726732249151,-500.0,0.00013437,2]
[338554909,1726732249160,-1979.64,0.00013437,2]
[338554910,1726732249170,-500.0,0.00013437,2]
[338554911,1726732249180,-500.0,0.00013437,2]
[338554912,1726732249189,-500.0,0.00013437,2]
[338554913,1726732249199,-653.65,0.00013437,2]
[338554914,1726732249208,-500.0,0.00013437,2]
[338554915,1726732249217,-500.0,0.00013437,2]
[338554916,1726732249227,-849.09,0.00013437,2]
[338554917,1726732249236,-500.0,0.00013437,2]
[338554918,1726732249245,-666.58,0.00013437,2]
[338554919,1726732249255,-500.0,0.00013437,2]
[338554920,1726732249264,-500.0,0.00013437,2]
[338554921,1726732249273,-500.0,0.00013437,2]
[338554922,1726732249283,-536.49308732,0.00013437,2]
[338554923,1726732249293,-544.2,0.00013437,2]
[338554924,1726732249303,-609.47350277,0.00013437,2]
[338554925,1726732249314,-500.0,0.00013437,2]
[338554926,1726732249323,-500.0,0.00013437,2]
[338554927,1726732249332,-500.0,0.00013437,2]
[338554928,1726732249342,-500.0,0.00013437,2]
[338554929,1726732249353,-500.0,0.00013437,2]
[338554930,1726732249362,-500.0,0.00013437,2]
[338554931,1726732249372,-500.0,0.00013437,2]
[338554932,1726732249381,-500.0,0.00013437,2]
[338554933,1726732249392,-500.0,0.00013437,2]
[338554934,1726732249401,-500.0,0.00013437,2]
[338554935,1726732249410,-500.0,0.00013437,2]
[338554936,1726732249420,-500.0,0.00013437,2]
[338554937,1726732249429,-500.0,0.00013437,2]
[338554938,1726732249438,-500.0,0.00013437,2]
[338554939,1726732249448,-625.63340727,0.00013437,2]
[338554940,1726732249457,-500.0,0.00013437,2]
[338554941,1726732249467,-500.0,0.00013437,2]
[338554942,1726732249476,-500.0,0.00013437,2]
[338554943,1726732249486,-500.0,0.00013437,2]
[338554944,1726732249496,-500.0,0.00013437,2]
[338554945,1726732249504,-500.0,0.00013437,2]
[338554946,1726732249513,-500.0,0.00013437,2]
[338554947,1726732249522,-500.0,0.00013437,2]
[338554948,1726732249531,-615.25,0.00013437,2]
[338554949,1726732249541,-600.0,0.00013449,2]
[338554950,1726732249552,-688.24,0.000136,2]
[338554951,1726732249562,-177.78,0.00013605,2]
[338554952,1726732249571,-673.44,0.0001361,2]
[338554953,1726732249581,-500.0,0.0001361,2]
[338554954,1726732249591,-500.0,0.0001361,2]
[338554955,1726732249600,-1243.1,0.0001361,2]
[338554956,1726732249610,-982.28,0.0001361,2]
[338554957,1726732249619,-500.0,0.0001361,2]
[338554958,1726732249629,-500.0,0.0001361,2]
[338554959,1726732249639,-862.5,0.0001361,2]
[338554960,1726732249648,-1402.12,0.0001361,2]
[338554961,1726732249658,-639.22,0.0001361,2]
[338554962,1726732249668,-557.76,0.0001361,2]
[338554963,1726732249677,-500.0,0.0001361,2]
[338554964,1726732249686,-717.81,0.0001361,2]
[338554965,1726732249695,-638.10953559,0.0001361,2]
[338554966,1726732249705,-500.0,0.0001361,2]
[338554967,1726732249715,-500.0,0.0001361,2]
[338554968,1726732249725,-500.0,0.0001361,2]
[338554969,1726732249734,-500.0,0.0001361,2]
[338554970,1726732249743,-500.0,0.0001361,2]
[338554971,1726732249752,-586.57,0.0001361,2]
[338554972,1726732249762,-756.99,0.0001361,2]
[338554973,1726732249771,-183.37985955,0.0001361,2]
[338554974,1726732249780,-500.0,0.0001361,2]
[338554975,1726732249790,-500.0,0.0001361,2]
[338554976,1726732249800,-500.0,0.0001361,2]
[338554977,1726732249809,-906.36,0.0001361,2]
[338554978,1726732249818,-1240.18,0.0001361,2]
[338554979,1726732249834,-672.73,0.0001361,2]
[338554980,1726732249844,-500.0,0.0001361,2]
[338554981,1726732249854,-500.0,0.0001361,2]
[338554982,1726732249863,-545.89,0.0001361,2]
[338554983,1726732249875,-500.0,0.0001361,2]
[338554984,1726732249884,-500.0,0.0001361,2]
[338554985,1726732249893,-500.0,0.0001361,2]
[338554986,1726732249903,-500.0,0.0001361,2]
[338554987,1726732249913,-728.38,0.0001361,2]
[338554988,1726732249923,-500.0,0.0001361,2]
[338554989,1726732249934,-500.0,0.0001361,2]
[338554990,1726732249943,-658.72,0.0001361,2]
[338554991,1726732249953,-519.0,0.0001361,2]
[338554992,1726732249962,-778.27,0.0001361,2]
[338554993,1726732249974,-500.0,0.0001361,2]
[338554994,1726732249983,-500.0,0.0001361,2]
[338554995,1726732249993,-500.0,0.0001361,2]
[338554996,1726732250003,-500.0,0.0001361,2]
[338554997,1726732250013,-500.0,0.0001361,2]
[338554998,1726732250022,-1008.59,0.0001361,2]
[338554999,1726732250032,-500.0,0.0001361,2]
[338555000,1726732250045,-718.9,0.0001361,2]
[338555001,1726732250054,-500.0,0.0001361,2]
[338555002,1726732250063,-4085.3,0.0001361,2]
[338555003,1726732250073,-500.0,0.0001361,2]
[338555004,1726732250082,-500.0,0.0001361,2]
[338555005,1726732250091,-584.37,0.0001361,2]
[338555006,1726732250100,-500.0,0.0001361,2]
[338555007,1726732250110,-500.0,0.0001361,2]
[338555008,1726732250120,-500.0,0.0001361,2]
[338555009,1726732250129,-500.0,0.0001361,2]
[338555010,1726732250141,-500.0,0.0001361,2]
[338555011,1726732250152,-2428.34,0.0001361,2]
[338555012,1726732250162,-500.0,0.0001361,2]
[338555013,1726732250172,-533.89934001,0.0001361,2]
[338555014,1726732250183,-547.42,0.0001361,2]
[338555015,1726732250193,-500.0,0.0001361,2]
[338555016,1726732250202,-723.1,0.0001361,2]
[338555017,1726732250211,-517.64,0.0001361,2]
[338555018,1726732250220,-694.44,0.0001361,2]
[338555019,1726732250230,-6022.09,0.0001361,2]
[338555020,1726732250239,-784.32,0.0001361,2]
[338555021,1726732250248,-1042.29,0.0001361,2]
[338555022,1726732250257,-500.0,0.0001361,2]
[338555023,1726732250266,-500.0,0.0001361,2]
[338555024,1726732250275,-500.0,0.0001361,2]
[338555025,1726732250286,-870.34,0.0001361,2]
[338555026,1726732250295,-842.63,0.0001361,2]
[338555027,1726732250304,-502.74,0.0001361,2]
[338555028,1726732250314,-500.0,0.0001361,2]
[338555029,1726732250323,-599.18,0.0001361,2]
[338555030,1726732250334,-1280.12,0.0001361,2]
[338555031,1726732250344,-500.0,0.0001361,2]
[338555032,1726732250354,-500.0,0.0001361,2]
[338555033,1726732250363,-1131.1,0.0001361,2]
[338555034,1726732250373,-1402.14,0.0001361,2]
[338555035,1726732250383,-1347.02,0.0001361,2]
[338555036,1726732250393,-500.0,0.0001361,2]
[338555037,1726732250402,-628.39,0.0001361,2]
[338555038,1726732250413,-907.55,0.0001361,2]
[338555039,1726732250424,-500.0,0.0001361,2]
[338555040,1726732250433,-1233.42,0.0001361,2]
[338555041,1726732250552,-500.0,0.0001361,2]
[338555042,1726732250562,-500.0,0.0001361,2]
[338555043,1726732250571,-500.0,0.0001361,2]
[338555044,1726732250581,-619.95,0.0001361,2]
[338555045,1726732250590,-500.0,0.0001361,2]
[338555046,1726732250599,-500.0,0.0001361,2]
[338555047,1726732250609,-1504.17,0.0001361,2]
[338555048,1726732250618,-500.0,0.0001361,2]
[338555049,1726732250628,-500.0,0.0001361,2]
[338555050,1726732250638,-500.0,0.0001361,2]
[338555051,1726732250648,-1372.29,0.0001361,2]
[338555052,1726732250657,-3332.6,0.0001361,2]
[338555053,1726732250666,-1755.32,0.0001361,2]
[338555054,1726732250676,-639.03147054,0.0001361,2]
[338555055,1726732250686,-500.0,0.0001361,2]
[338555056,1726732250695,-2237.52,0.0001361,2]
[338555057,1726732250704,-500.0,0.0001361,2]
[338555058,1726732250714,-500.0,0.0001361,2]
[338555059,1726732250723,-500.0,0.0001361,2]
[338555060,1726732250732,-1400.09,0.0001361,2]
[338555061,1726732250742,-500.0,0.0001361,2]
[338555062,1726732250752,-379.2883125,0.0001361,2]
[338555063,1726732250762,-500.0,0.0001361,2]
[338555064,1726732250771,-2058.1,0.0001361,2]
[338555065,1726732250781,-1344.07,0.0001361,2]
[338555066,1726732250791,-568.11,0.0001361,2]
[338555067,1726732250801,-725.32,0.0001361,2]
[338555068,1726732250810,-1266.88,0.0001361,2]
[338555069,1726732250820,-548.13457238,0.0001361,2]
[338555070,1726732250834,-607.02,0.0001361,2]
[338555071,1726732250843,-773.5,0.0001361,2]
[338555072,1726732250852,-2144.96,0.0001361,2]
[338555073,1726732250861,-500.0,0.0001361,2]
[338555074,1726732250871,-707.1,0.0001361,2]
[338555075,1726732250880,-1791.75,0.0001361,2]
[338555076,1726732250889,-610.73,0.0001361,2]
[338555077,1726732250899,-1226.59,0.0001361,2]
[338555078,1726732250908,-500.0,0.0001361,2]
[338555079,1726732250918,-1499.27,0.0001361,2]
[338555080,1726732250927,-1218.65,0.0001361,2]
[338555081,1726732250937,-500.0,0.0001361,2]
[338555082,1726732250946,-1490.06,0.0001361,2]
[338555083,1726732250956,-981.47,0.0001361,2]
[338555084,1726732250966,-500.0,0.0001361,2]
[338555085,1726732250975,-689.16,0.0001361,2]
[338555086,1726732250985,-500.0,0.0001361,2]
[338555087,1726732250994,-500.0,0.0001361,2]
[338555088,1726732251003,-4015.97,0.0001361,2]
[338555089,1726732251012,-500.0,0.0001361,2]
[338555090,1726732251023,-500.0,0.0001361,2]
[338555091,1726732251034,-500.0,0.0001361,2]
[338555092,1726732251045,-500.0,0.0001361,2]
[338555093,1726732251054,-534.73,0.0001361,2]
[338555094,1726732251064,-1873.31,0.0001361,2]
[338555095,1726732251074,-1649.35,0.0001361,2]
[338555096,1726732251083,-2518.22,0.0001361,2]
[338555097,1726732251093,-951.55,0.0001361,2]
[338555098,1726732251104,-961.38,0.0001361,2]
[338555099,1726732251115,-838.34,0.0001361,2]
[338555100,1726732251125,-500.0,0.0001361,2]
[338555101,1726732251135,-2656.04,0.0001361,2]
[338555102,1726732251145,-1102.89,0.0001361,2]
[338555103,1726732251154,-538.09,0.0001361,2]
[338555104,1726732251164,-614.44,0.0001361,2]
[338555105,1726732251175,-500.0,0.0001361,2]
[338555106,1726732251185,-500.0,0.0001361,2]
[338555107,1726732251196,-1240.77,0.0001361,2]
[338555108,1726732251206,-500.0,0.0001361,2]
[338555109,1726732251216,-500.0,0.0001361,2]
[338555110,1726732251225,-886.35,0.0001361,2]
[338555111,1726732251234,-953.58,0.0001361,2]
[338555112,1726732251243,-661.25,0.0001361,2]
[338555113,1726732251253,-514.5,0.0001361,2]
[338555114,1726732251262,-631.07,0.0001361,2]
[338555115,1726732251271,-500.0,0.0001361,2]
[338555116,1726732251281,-716.29,0.0001361,2]
[338555117,1726732251291,-500.0,0.0001361,2]
[338555118,1726732251301,-500.0,0.0001361,2]
[338555119,1726732251310,-500.0,0.0001361,2]
[338555120,1726732251319,-500.0,0.0001361,2]
[338555121,1726732251329,-1113.9,0.0001361,2]
[338555122,1726732251338,-1295.39,0.0001361,2]
[338555123,1726732251348,-500.0,0.0001361,2]
[338555124,1726732251357,-500.0,0.0001361,2]
[338555125,1726732251366,-500.0,0.0001361,2]
[338555126,1726732251376,-686.32,0.0001361,2]
[338555127,1726732251385,-500.0,0.0001361,2]
[338555128,1726732251395,-1117.17,0.0001361,2]
[338555129,1726732251405,-500.0,0.0001361,2]
[338555130,1726732251414,-1504.63,0.0001361,2]
[338555131,1726732251423,-1973.3,0.0001361,2]
[338555132,1726732251433,-500.0,0.0001361,2]
[338555133,1726732251443,-500.0,0.0001361,2]
[338555134,1726732251452,-421.86233158,0.00013616,2]
[338555135,1726732251462,-339.07182377,0.00013637,2]
[338555136,1726732251471,-3400.98670077,0.00013672,2]
[338555137,1726732251481,-188.84,0.00013685,2]
[338555138,1726732251491,-700.0,0.00013698,2]
[338555139,1726732251500,-700.0,0.00013698,2]
[338555140,1726732251510,-700.0,0.00013698,2]
[338555141,1726732251519,-1000.0,0.00013698,2]
[338555142,1726732251529,-670.24,0.00013699,2]
[338555143,1726732251551,-151.98,0.00013699,2]
[338555144,1726732251560,-2700.0,0.000137,5]
[338555145,1726732251570,-500.0,0.00013711,2]
[338555146,1726732251579,-500.0,0.00013711,2]
[338555147,1726732251590,-500.0,0.00013711,2]
[338555148,1726732251599,-500.0,0.00013711,2]
[338555149,1726732251609,-500.0,0.00013711,2]
[338555150,1726732251618,-500.0,0.00013711,2]
[338555151,1726732251628,-500.0,0.00013711,2]
[338555152,1726732251638,-511.73,0.00013711,2]
[338555153,1726732251647,-556.86,0.00013711,2]
[338555154,1726732251657,-500.0,0.00013711,2]
[338555155,1726732251667,-500.0,0.00013711,2]
[338555156,1726732251677,-500.0,0.00013711,2]
[338555157,1726732251687,-500.0,0.00013711,2]
[338555158,1726732251697,-733.16,0.00013711,2]
[338555159,1726732251706,-500.0,0.00013711,2]
[338555160,1726732251716,-500.0,0.00013711,2]
[338555161,1726732251727,-500.0,0.00013711,2]
[338555162,1726732251736,-513.56,0.00013711,2]
[338555163,1726732251746,-500.0,0.00013711,2]
[338555164,1726732251756,-500.0,0.00013711,2]
[338555165,1726732251766,-500.0,0.00013711,2]
[338555166,1726732251777,-500.0,0.00013711,2]
[338555167,1726732251788,-500.0,0.00013711,2]
[338555168,1726732251797,-500.0,0.00013711,2]
[338555169,1726732251806,-407.60172853,0.00013711,2]
[338555170,1726732251816,-500.0,0.00013711,2]
[338555171,1726732251827,-500.0,0.00013711,2]
[338555172,1726732251838,-500.0,0.00013711,2]
[338555173,1726732251850,-500.0,0.00013711,2]
[338555174,1726732251861,-500.0,0.00013711,2]
[338555175,1726732251872,-500.0,0.00013711,2]
[338555176,1726732251882,-500.0,0.00013711,2]
[338555177,1726732251892,-591.17,0.00013711,2]
[338555178,1726732251905,-500.0,0.00013711,2]
[338555179,1726732251914,-500.0,0.00013711,2]
[338555180,1726732251923,-500.0,0.00013711,2]
[338555181,1726732251933,-500.0,0.00013711,2]
[338555182,1726732251943,-500.0,0.00013711,2]
[338555183,1726732251953,-500.0,0.00013711,2]
[338555184,1726732251962,-696.61,0.00013711,2]
[338555185,1726732251973,-500.0,0.00013711,2]
[338555186,1726732251982,-500.0,0.00013711,2]
[338555187,1726732251992,-539.18,0.00013711,2]
[338555188,1726732252001,-500.0,0.00013711,2]
[338555189,1726732252010,-500.0,0.00013711,2]
[338555190,1726732252020,-500.0,0.00013711,2]
[338555191,1726732252029,-717.13,0.00013711,2]
[338555192,1726732252044,-701.24,0.00013711,2]
[338555193,1726732252053,-500.0,0.00013711,2]
[338555194,1726732252063,-443.82507292,0.00013711,2]
[338555195,1726732252072,-544.0,0.00013711,2]
[338555196,1726732252081,-941.85,0.00013711,2]
[338555197,1726732252092,-500.0,0.00013711,2]
[338555198,1726732252101,-500.0,0.00013711,2]
[338555199,1726732252111,-500.0,0.00013711,2]
[338555200,1726732252120,-500.0,0.00013711,2]
[338555201,1726732252129,-500.0,0.00013711,2]
[338555202,1726732252138,-503.36693177,0.00013711,2]
[338555203,1726732252147,-500.0,0.00013711,2]
[338555204,1726732252156,-500.0,0.00013711,2]
[338555205,1726732252166,-700.0,0.00013711,2]
[338555206,1726732252175,-500.0,0.00013711,2]
[338555207,1726732252184,-500.0,0.00013711,2]
[338555208,1726732252194,-504.44,0.00013711,2]
[338555209,1726732252204,-500.0,0.00013711,2]
[338555210,1726732252215,-500.0,0.00013711,2]
[338555211,1726732252226,-500.0,0.00013711,2]
[338555212,1726732252236,-561.64,0.00013711,2]
[338555213,1726732252248,-500.0,0.00013711,2]
[338555214,1726732252258,-969.61,0.00013711,2]
[338555215,1726732252278,-858.02,0.00013711,2]
[338555216,1726732252289,-500.0,0.00013711,2]
[338555217,1726732252298,-896.77,0.00013711,2]
[338555218,1726732252308,-500.0,0.00013711,2]
[338555219,1726732252318,-674.18,0.00013711,2]
[338555220,1726732252329,-500.0,0.00013711,2]
[338555221,1726732252339,-500.0,0.00013711,2]
[338555222,1726732252349,-643.3,0.00013711,2]
[338555223,1726732252360,-500.0,0.00013711,2]
[338555224,1726732252372,-993.4,0.00013711,2]
[338555225,1726732252383,-500.0,0.00013711,2]
[338555226,1726732252395,-500.0,0.00013711,2]
[338555227,1726732252405,-1258.28,0.00013711,2]
[338555228,1726732252416,-677.15,0.00013711,2]
[338555229,1726732252427,-1044.68,0.00013711,2]
[338555230,1726732252437,-705.18,0.00013711,2]
[338555231,1726732252447,-500.0,0.00013711,2]
[338555232,1726732252456,-500.0,0.00013711,2]
[338555233,1726732252466,-812.59,0.00013711,2]
[338555234,1726732252476,-500.0,0.00013711,2]
[338555235,1726732252486,-593.93,0.00013711,2]
[338555236,1726732252496,-500.0,0.00013711,2]
[338555237,1726732252505,-500.0,0.00013711,2]
[338555238,1726732252515,-582.2,0.00013711,2]
[338555239,1726732252525,-819.35,0.00013711,2]
[338555240,1726732252538,-500.0,0.00013711,2]
[338555241,1726732252547,-500.0,0.00013711,2]
[338555242,1726732252557,-500.0,0.00013711,2]
[338555243,1726732252567,-565.94,0.00013711,2]
[338555244,1726732252576,-500.0,0.00013711,2]
[338555245,1726732252586,-500.0,0.00013711,2]
[338555246,1726732252596,-1613.08,0.00013711,2]
[338555247,1726732252605,-536.25,0.00013711,2]
[338555248,1726732252615,-725.28,0.00013711,2]
[338555249,1726732252625,-500.0,0.00013711,2]
[338555250,1726732252635,-500.0,0.00013711,2]
[338555251,1726732252645,-500.0,0.00013711,2]
[338555252,1726732252655,-500.0,0.00013711,2]
[338555253,1726732252665,-500.0,0.00013711,2]
[338555254,1726732252675,-855.03,0.00013711,2]
[338555255,1726732252685,-500.0,0.00013711,2]
[338555256,1726732252695,-500.0,0.00013711,2]
[338555257,1726732252705,-500.0,0.00013711,2]
[338555258,1726732252715,-500.0,0.00013711,2]
[338555259,1726732253047,-1132.22,0.00013711,2]
[338555260,1726732253059,-500.0,0.00013711,2]
[338555261,1726732253069,-500.0,0.00013711,2]
[338555262,1726732253079,-816.95,0.00013711,2]
[338555263,1726732253088,-500.0,0.00013711,2]
[338555264,1726732253098,-500.0,0.00013711,2]
[338555265,1726732253107,-500.0,0.00013711,2]
[338555266,1726732253117,-500.0,0.00013711,2]
[338555267,1726732253126,-500.0,0.00013711,2]
[338555268,1726732253136,-807.02,0.00013711,2]
[338555269,1726732253146,-500.0,0.00013711,2]
[338555270,1726732253156,-500.0,0.00013711,2]
[338555271,1726732253166,-647.66486134,0.00013711,2]
[338555272,1726732253176,-728.77,0.00013711,2]
[338555273,1726732253185,-539.85,0.00013711,2]
[338555274,1726732253196,-570.70965591,0.00013711,2]
[338555275,1726732253205,-500.0,0.00013711,2]
[338555276,1726732253215,-500.0,0.00013711,2]
[338555277,1726732253224,-783.65,0.00013711,2]
[338555278,1726732253234,-572.27,0.00013711,2]
[338555279,1726732253244,-500.0,0.00013711,2]
[338555280,1726732253254,-500.0,0.00013711,2]
[338555281,1726732253264,-500.0,0.00013711,2]
[338555282,1726732253274,-962.12,0.00013711,2]
[338555283,1726732253283,-500.0,0.00013711,2]
[338555284,1726732253294,-500.0,0.00013711,2]
[338555285,1726732253303,-545.57,0.00013711,2]
[338555286,1726732253312,-500.0,0.00013711,2]
[338555287,1726732253322,-500.0,0.00013711,2]
[338555288,1726732253331,-910.48,0.00013711,2]
[338555289,1726732253341,-979.92,0.00013711,2]
[338555290,1726732253350,-1433.4,0.00013711,2]
[338555291,1726732253360,-500.0,0.00013711,2]
[338555292,1726732253369,-500.0,0.00013711,2]
[338555293,1726732253379,-665.78,0.00013711,2]
[338555294,1726732253388,-638.34,0.00013711,2]
[338555295,1726732253402,-500.0,0.00013711,2]
[338555296,1726732253411,-500.0,0.00013711,2]
[338555297,1726732253421,-500.0,0.00013711,2]
[338555298,1726732253432,-500.0,0.00013711,2]
[338555299,1726732253442,-503.9,0.00013711,2]
[338555300,1726732253452,-500.0,0.00013711,2]
[338555301,1726732253462,-522.83,0.00013711,2]
[338555302,1726732253472,-500.0,0.00013711,2]
[338555303,1726732253482,-500.0,0.00013711,2]
[338555304,1726732253493,-500.0,0.00013711,2]
[338555305,1726732253503,-500.0,0.00013711,2]
[338555306,1726732253514,-500.0,0.00013711,2]
[338555307,1726732253524,-549.04,0.00013711,2]
[338555308,1726732253535,-500.0,0.00013711,2]
[338555309,1726732253545,-1979.64,0.00013711,2]
[338555310,1726732253557,-500.0,0.00013711,2]
[338555311,1726732253567,-500.0,0.00013711,2]
[338555312,1726732253577,-500.0,0.00013711,2]
[338555313,1726732253588,-653.65,0.00013711,2]
[338555314,1726732253598,-500.0,0.00013711,2]
[338555315,1726732253609,-500.0,0.00013711,2]
[338555316,1726732253619,-849.09,0.00013711,2]
[338555317,1726732253629,-500.0,0.00013711,2]
[338555318,1726732253640,-666.58,0.00013711,2]
[338555319,1726732253650,-500.0,0.00013711,2]
[338555320,1726732253660,-500.0,0.00013711,2]
[338555321,1726732253670,-500.0,0.00013711,2]
[338555322,1726732253680,-544.2,0.00013711,2]
[338555323,1726732253691,-500.0,0.00013711,2]
[338555324,1726732253702,-436.272627,0.00013711,2]
[338555325,1726732253712,-500.0,0.00013711,2]
[338555326,1726732253723,-500.0,0.00013711,2]
[338555327,1726732253733,-500.0,0.00013711,2]
[338555328,1726732253745,-500.0,0.00013711,2]
[338555329,1726732253756,-500.0,0.00013711,2]
[338555330,1726732253766,-500.0,0.00013711,2]
[338555331,1726732253776,-500.0,0.00013711,2]
[338555332,1726732253787,-500.0,0.00013711,2]
[338555333,1726732253796,-500.0,0.00013711,2]
[338555334,1726732253806,-500.0,0.00013711,2]
[338555335,1726732253816,-500.0,0.00013711,2]
[338555336,1726732253827,-500.0,0.00013711,2]
[338555337,1726732253838,-500.0,0.00013711,2]
[338555338,1726732253848,-500.0,0.00013711,2]
[338555339,1726732253858,-500.0,0.00013711,2]
[338555340,1726732253868,-500.0,0.00013711,2]
[338555341,1726732253878,-500.0,0.00013711,2]
[338555342,1726732253888,-500.0,0.00013711,2]
[338555343,1726732253898,-500.0,0.00013711,2]
[338555344,1726732253910,-500.0,0.00013711,2]
[338555345,1726732253920,-615.25,0.00013711,2]
[338555346,1726732253932,-210.45,0.00013779,2]
[338555347,1726732253942,-520.0,0.00013792,2]
[338555348,1726732253952,-3600.0,0.000138,5]
[338555349,1726732253962,-30163.3992773,0.000138,2]
[338555350,1726732253972,-1548.0,0.00013808,2]
[338555351,1726732253983,-1262.0,0.00013808,2]
[338555352,1726732253993,-448.0,0.00013808,2]
[338555353,1726732254003,-625.0,0.00013808,2]
[338555354,1726732254012,-932.0,0.00013808,2]
[338555355,1726732254022,-558.0,0.00013808,2]
[338555356,1726732254032,-810.0,0.00013808,2]
[338555357,1726732254044,-150.0,0.00013808,2]
[338555358,1726732254053,-1902.0,0.00013808,2]
[338555359,1726732254063,-553.0,0.00013808,2]
[338555360,1726732254072,-3345.0,0.00013808,2]
[338555361,1726732254082,-1329.987,0.00013808,2]
[338555362,1726732254091,-248.0,0.00013808,2]
[338555363,1726732254101,-806.0,0.00013808,2]
[338555364,1726732254111,-150.0,0.00013808,2]
[338555365,1726732254120,-250.0,0.00013808,2]
[338555366,1726732254131,-5866.0,0.00013808,2]